fUST/lending_fUST_20240822
["ID","MTS","AMOUNT","RATE_DAILY","PERIOD"]
[335574873,1724337103210,-500.0,0.00021917,7]
[335574874,1724337103220,-500.0,0.00021917,7]
[335574875,1724337103230,-500.0,0.00021917,7]
[335574876,1724337103240,-500.0,0.00021917,7]
[335574877,1724337103253,-500.0,0.00021917,7]
[335574878,1724337103264,-500.0,0.00021917,7]
[335574879,1724337103276,-500.0,0.00021917,7]
[335574880,1724337103285,-808.33,0.00021917,7]
[335574881,1724337103295,-500.0,0.00021917,7]
[335574882,1724337103305,-715.05,0.00021917,7]
[335574883,1724337103314,-500.0,0.00021917,7]
[335574884,1724337103324,-500.0,0.00021917,7]
[335574885,1724337103334,-500.0,0.00021917,7]
[335574886,1724337103344,-500.0,0.00021917,7]
[335574887,1724337103353,-293.84227761,0.00021917,7]
[335574888,1724337103363,-1705.25,0.00021917,7]
[335574889,1724337103373,-500.0,0.00021917,7]
[335574890,1724337103383,-500.0,0.00021917,7]
[335574891,1724337103392,-500.0,0.00021917,7]
[335574892,1724337103402,-647.13,0.00021917,7]
[335574893,1724337103411,-500.0,0.00021917,7]
[335574894,1724337103421,-500.0,0.00021917,7]
[335574895,1724337103430,-500.0,0.00021917,7]
[335574896,1724337103440,-564.81,0.00021917,7]
[335574897,1724337103452,-500.0,0.00021917,7]
[335574898,1724337103463,-1137.6,0.00021917,7]
[335574899,1724337103473,-694.46,0.00021917,7]
[335574900,1724337103486,-1020.45,0.00021917,7]
[335574901,1724337103496,-713.79,0.00021917,7]
[335574902,1724337103507,-500.0,0.00021917,7]
[335574903,1724337103516,-487.5731996,0.00021917,7]
[335574904,1724337103528,-160.07722252,0.00021917,7]
[335574905,1724337103538,-500.0,0.00021917,7]
[335574906,1724337103548,-699.08,0.00021917,7]
[335574907,1724337103557,-500.0,0.00021917,7]
[335574908,1724337103567,-1436.03,0.00021917,7]
[335574909,1724337103577,-3994.81,0.00021917,7]
[335574910,1724337103587,-500.0,0.00021917,7]
[335574911,1724337103596,-500.0,0.00021917,7]
[335574912,1724337103606,-500.0,0.00021917,7]
[335574913,1724337103616,-1198.53,0.00021917,7]
[335574914,1724337103626,-1033.59,0.00021917,7]
[335574915,1724337103636,-500.0,0.00021917,7]
[335574916,1724337103646,-500.0,0.00021917,7]
[335574917,1724337103657,-700.58,0.00021917,7]
[335574918,1724337103666,-512.85,0.00021917,7]
[335574919,1724337103676,-500.0,0.00021917,7]
[335574920,1724337103686,-500.0,0.00021917,7]
[335574921,1724337103696,-3031.45,0.00021917,7]
[335574922,1724337103706,-500.0,0.00021917,7]
[335574923,1724337103716,-500.0,0.00021917,7]
[335574924,1724337103726,-500.0,0.00021917,7]
[335574925,1724337103736,-1227.89,0.00021917,7]
[335574926,1724337103746,-3546.33,0.00021917,7]
[335574927,1724337103756,-662.72,0.00021917,7]
[335574928,1724337103765,-500.0,0.00021917,7]
[335574929,1724337103778,-1218.85,0.00021917,7]
[335574930,1724337103788,-740.65,0.00021917,7]
[335574931,1724337103798,-500.0,0.00021917,7]
[335574932,1724337103808,-500.0,0.00021917,7]
[335574933,1724337103818,-638.64,0.00021917,7]
[335574934,1724337103828,-500.0,0.00021917,7]
[335574935,1724337103838,-500.0,0.00021917,7]
[335574936,1724337103848,-500.0,0.00021917,7]
[335574937,1724337103858,-500.0,0.00021917,7]
[335574938,1724337103867,-500.0,0.00021917,7]
[335574939,1724337103877,-500.0,0.00021917,7]
[335574940,1724337103887,-770.95,0.00021917,7]
[335574941,1724337103896,-500.0,0.00021917,7]
[335574942,1724337103906,-961.46,0.00021917,7]
[335574943,1724337103916,-500.0,0.00021917,7]
[335574944,1724337103926,-448.85215905,0.00021917,7]
[335574945,1724337103935,-752.18,0.00021917,7]
[335574946,1724337103945,-607.64972,0.00021917,7]
[335574947,1724337103955,-888.74,0.00021917,7]
[335574948,1724337103964,-500.0,0.00021917,7]
[335574949,1724337103974,-575.3,0.00021917,7]
[335574950,1724337103983,-500.0,0.00021917,7]
[335574951,1724337103993,-500.0,0.00021917,7]
[335574952,1724337104002,-500.0,0.00021917,7]
[335574953,1724337104011,-605.15,0.00021917,2]
[335574954,1724337104023,-500.0,0.00021917,7]
[335574955,1724337104032,-592.91,0.00021917,7]
[335574956,1724337104041,-500.0,0.00021917,7]
[335574957,1724337104051,-624.37,0.00021917,7]
[335574958,1724337104060,-500.0,0.00021917,7]
[335574959,1724337104069,-500.0,0.00021917,7]
[335574960,1724337104079,-500.0,0.00021917,7]
[335574961,1724337104089,-967.76,0.00021917,7]
[335574962,1724337104099,-573.69,0.00021917,7]
[335574963,1724337104109,-500.0,0.00021917,7]
[335574964,1724337104118,-504.55658255,0.00021917,7]
[335574965,1724337104127,-500.0,0.00021917,7]
[335574966,1724337104136,-500.0,0.00021917,7]
[335574967,1724337104146,-500.0,0.00021917,7]
[335574968,1724337104155,-500.0,0.00021917,7]
[335574969,1724337104164,-500.0,0.00021917,7]
[335574970,1724337104174,-500.0,0.00021917,7]
[335574971,1724337104187,-500.0,0.00021917,7]
[335574972,1724337104196,-500.0,0.00021917,7]
[335574973,1724337104206,-542.04,0.00021917,7]
[335574974,1724337104216,-1115.71,0.00021917,7]
[335574975,1724337104226,-838.02,0.00021917,7]
[335574976,1724337104236,-500.0,0.00021917,7]
[335574977,1724337104247,-500.0,0.00021917,7]
[335574978,1724337104258,-500.0,0.00021917,7]
[335574979,1724337104388,-1873.86,0.00021917,7]
[335574980,1724337104408,-1830.08,0.00021917,7]
[335574981,1724337104418,-2744.02,0.00021917,7]
[335574982,1724337104427,-500.0,0.00021917,7]
[335574983,1724337104437,-500.0,0.00021917,7]
[335574984,1724337104447,-500.0,0.00021917,7]
[335574985,1724337104457,-634.47,0.00021917,7]
[335574986,1724337104466,-1183.82,0.00021917,7]
[335574987,1724337104475,-500.0,0.00021917,7]
[335574988,1724337104485,-890.77,0.00021917,7]
[335574989,1724337104494,-500.0,0.00021917,7]
[335574990,1724337104504,-500.0,0.00021917,7]
[335574991,1724337104514,-763.16,0.00021917,7]
[335574992,1724337104524,-1016.87,0.00021917,7]
[335574993,1724337104534,-997.99,0.00021917,7]
[335574994,1724337104544,-500.0,0.00021917,7]
[335574995,1724337104554,-500.0,0.00021917,7]
[335574996,1724337104564,-651.35,0.00021917,7]
[335574997,1724337104574,-500.0,0.00021917,7]
[335574998,1724337104583,-500.0,0.00021917,7]
[335574999,1724337104593,-500.0,0.00021917,7]
[335575000,1724337104602,-500.0,0.00021917,7]
[335575001,1724337104611,-500.0,0.00021917,7]
[335575002,1724337104621,-500.0,0.00021917,7]
[335575003,1724337104630,-500.0,0.00021917,7]
[335575004,1724337104640,-715.99,0.00021917,7]
[335575005,1724337104650,-1266.22,0.00021917,7]
[335575006,1724337104659,-1424.76,0.00021917,7]
[335575007,1724337104668,-670.35,0.00021917,7]
[335575008,1724337104678,-514.56737368,0.00021917,7]
[335575009,1724337104687,-500.0,0.00021917,7]
[335575010,1724337104696,-890.6,0.00021917,7]
[335575011,1724337104705,-500.0,0.00021917,7]
[335575012,1724337104716,-587.3,0.00021917,7]
[335575013,1724337104726,-607.67,0.00021917,7]
[335575014,1724337104736,-500.0,0.00021917,7]
[335575015,1724337104745,-500.0,0.00021917,7]
[335575016,1724337104755,-500.0,0.00021917,7]
[335575017,1724337104765,-500.0,0.00021917,7]
[335575018,1724337104774,-528.02,0.00021917,7]
[335575019,1724337104784,-500.0,0.00021917,7]
[335575020,1724337104794,-1496.75,0.00021917,7]
[335575021,1724337104803,-500.0,0.00021917,7]
[335575022,1724337104813,-1156.13,0.00021917,7]
[335575023,1724337104822,-500.0,0.00021917,7]
[335575024,1724337104832,-921.66,0.00021917,7]
[335575025,1724337104841,-500.0,0.00021917,7]
[335575026,1724337104851,-543.9860102,0.00021917,7]
[335575027,1724337104861,-570.52,0.00021917,7]
[335575028,1724337104871,-924.93,0.00021917,7]
[335575029,1724337104880,-652.28,0.00021917,7]
[335575030,1724337104890,-963.38,0.00021917,7]
[335575031,1724337104900,-500.0,0.00021917,7]
[335575032,1724337104909,-697.46,0.00021917,7]
[335575033,1724337104919,-500.0,0.00021917,7]
[335575034,1724337104929,-1051.44,0.00021917,7]
[335575035,1724337104939,-500.0,0.00021917,7]
[335575036,1724337104949,-500.0,0.00021917,7]
[335575037,1724337104959,-500.0,0.00021917,7]
[335575038,1724337104969,-500.0,0.00021917,7]
[335575039,1724337104978,-724.14,0.00021917,7]
[335575040,1724337104988,-500.0,0.00021917,2]
[335575041,1724337104997,-500.0,0.00021917,7]
[335575042,1724337105007,-808.3,0.00021917,7]
[335575043,1724337105016,-667.93,0.00021917,7]
[335575044,1724337105027,-500.0,0.00021917,7]
[335575045,1724337105036,-727.12,0.00021917,7]
[335575046,1724337105045,-500.0,0.00021917,7]
[335575047,1724337105055,-500.0,0.00021917,7]
[335575048,1724337105065,-500.0,0.00021917,7]
[335575049,1724337105075,-500.0,0.00021917,7]
[335575050,1724337105084,-500.0,0.00021917,7]
[335575051,1724337105093,-500.0,0.00021917,7]
[335575052,1724337105103,-500.0,0.00021917,7]
[335575053,1724337105112,-500.0,0.00021917,7]
[335575054,1724337105121,-560.96,0.00021917,7]
[335575055,1724337105131,-590.94968837,0.00021917,7]
[335575056,1724337105140,-1126.21,0.00021917,7]
[335575057,1724337105150,-492.09965621,0.00021917,7]
[335575058,1724337105159,-746.35,0.00021917,7]
[335575059,1724337105172,-603.24,0.00021917,7]
[335575060,1724337105181,-1425.13,0.00021917,7]
[335575061,1724337105191,-916.64,0.00021917,7]
[335575062,1724337105200,-500.0,0.00021917,7]
[335575063,1724337105211,-1028.48,0.00021917,7]
[335575064,1724337105225,-205.54858275,0.00021917,7]
[335575065,1724337105235,-500.0,0.00021917,7]
[335575066,1724337105247,-500.0,0.00021917,7]
[335575067,1724337105258,-500.0,0.00021917,7]
[335575068,1724337105268,-549.70907693,0.00021917,7]
[335575069,1724337105280,-860.76,0.00021917,7]
[335575070,1724337105289,-500.0,0.00021917,7]
[335575071,1724337105299,-500.0,0.00021917,7]
[335575072,1724337105308,-754.51,0.00021917,7]
[335575073,1724337105317,-500.0,0.00021917,7]
[335575074,1724337105326,-500.0,0.00021917,7]
[335575075,1724337105335,-500.0,0.00021917,7]
[335575076,1724337105344,-538.48,0.00021917,7]
[335575077,1724337105354,-500.0,0.00021917,7]
[335575078,1724337105363,-595.55,0.00021917,7]
[335575079,1724337105373,-762.94,0.00021917,7]
[335575080,1724337105382,-1314.87,0.00021917,7]
[335575081,1724337105391,-802.29,0.00021917,7]
[335575082,1724337105400,-500.0,0.00021917,7]
[335575083,1724337105409,-500.0,0.00021917,7]
[335575084,1724337105419,-500.0,0.00021917,7]
[335575085,1724337105429,-899.02,0.00021917,7]
[335575086,1724337105438,-7996.98,0.00021917,7]
[335575087,1724337105447,-500.81,0.00021917,7]
[335575088,1724337105457,-1309.03,0.00021917,7]
[335575089,1724337105466,-879.16,0.00021917,7]
[335575090,1724337105477,-500.0,0.00021917,7]
[335575091,1724337105487,-1025.81,0.00021917,7]
[335575092,1724337105496,-836.99,0.00021917,7]
[335575093,1724337105505,-1000.0,0.00021917,7]
[335575094,1724337105515,-500.0,0.00021917,7]
[335575095,1724337105524,-517.1,0.00021917,7]
[335575096,1724337105533,-701.2,0.00021917,7]
[335575097,1724337105542,-500.0,0.00021917,7]
[335575098,1724337105551,-633.22,0.00021917,7]
[335575099,1724337105560,-500.0,0.00021917,7]
[335575100,1724337105569,-500.0,0.00021917,7]
[335575101,1724337105578,-860.08,0.00021917,7]
[335575102,1724337105587,-500.0,0.00021917,7]
[335575103,1724337105596,-1414.5,0.00021917,7]
[335575104,1724337105606,-500.0,0.00021917,7]
[335575105,1724337105616,-500.0,0.00021917,7]
[335575106,1724337105626,-500.0,0.00021917,7]
[335575107,1724337105636,-500.0,0.00021917,7]
[335575108,1724337105645,-983.19,0.00021917,7]
[335575109,1724337105654,-406.48992004,0.00021917,7]
[335575110,1724337105663,-1556.78,0.00021917,7]
[335575111,1724337105673,-729.98,0.00021917,7]
[335575112,1724337105682,-500.0,0.00021917,7]
[335575113,1724337105692,-972.14,0.00021917,7]
[335575114,1724337105701,-329.31692437,0.00021917,7]
[335575115,1724337105710,-953.52,0.00021917,7]
[335575116,1724337105720,-500.0,0.00021917,7]
[335575117,1724337105730,-846.73,0.00021917,7]
[335575118,1724337105739,-500.0,0.00021917,7]
[335575119,1724337105748,-738.3,0.00021917,7]
[335575120,1724337105758,-500.0,0.00021917,7]
[335575121,1724337105767,-595.80273573,0.00021917,7]
[335575122,1724337105778,-4559.07,0.00021917,7]
[335575123,1724337105788,-1040.74,0.00021917,7]
[335575124,1724337105798,-776.26,0.00021917,7]
[335575125,1724337105807,-713.41,0.00021917,7]
[335575126,1724337105817,-500.0,0.00021917,7]
[335575127,1724337105828,-502.93,0.00021917,7]
[335575128,1724337105838,-500.0,0.00021917,7]
[335575129,1724337105848,-500.0,0.00021917,7]
[335575130,1724337105857,-712.81,0.00021917,7]
[335575131,1724337105867,-574.44,0.00021917,7]
[335575132,1724337105876,-500.0,0.00021917,7]
[335575133,1724337105885,-753.0,0.00021917,7]
[335575134,1724337105895,-214.64810618,0.00021917,7]
[335575135,1724337105904,-500.0,0.00021917,7]
[335575136,1724337105914,-644.46,0.00021917,7]
[335575137,1724337105923,-517.68291587,0.00021917,7]
[335575138,1724337105933,-3014.58,0.00021917,7]
[335575139,1724337105943,-500.0,0.00021917,7]
[335575140,1724337105952,-500.0,0.00021917,7]
[335575141,1724337105962,-971.35,0.00021917,7]
[335575142,1724337105971,-500.0,0.00021917,7]
[335575143,1724337105980,-828.87,0.00021917,7]
[335575144,1724337105990,-793.89,0.00021917,7]
[335575145,1724337105999,-500.0,0.00021917,7]
[335575146,1724337106008,-500.0,0.00021917,7]
[335575147,1724337106017,-4804.15,0.00021917,7]
[335575148,1724337106027,-753.53,0.00021917,7]
[335575149,1724337106036,-536.81,0.00021917,7]
[335575150,1724337106046,-3219.17,0.00021917,7]
[335575151,1724337106055,-500.0,0.00021917,7]
[335575152,1724337106064,-908.95,0.00021917,7]
[335575153,1724337106073,-500.0,0.00021917,7]
[335575154,1724337106082,-2110.08,0.00021917,7]
[335575155,1724337106091,-834.94,0.00021917,7]
[335575156,1724337106100,-602.89,0.00021917,7]
[335575157,1724337106109,-500.0,0.00021917,7]
[335575158,1724337106119,-500.0,0.00021917,7]
[335575159,1724337106129,-757.17,0.00021917,7]
[335575160,1724337106138,-3504.48,0.00021917,7]
[335575161,1724337106148,-682.2,0.00021917,7]
[335575162,1724337106157,-500.0,0.00021917,7]
[335575163,1724337106166,-1189.02,0.00021917,7]
[335575164,1724337106179,-805.36,0.00021917,7]
[335575165,1724337106188,-500.0,0.00021917,7]
[335575166,1724337106197,-500.0,0.00021917,7]
[335575167,1724337106207,-921.36,0.00021917,7]
[335575168,1724337106217,-500.0,0.00021917,7]
[335575169,1724337106227,-343.05096068,0.00021917,7]
[335575170,1724337106237,-529.01150537,0.00021917,7]
[335575171,1724337106246,-500.0,0.00021917,7]
[335575172,1724337106258,-6311.13,0.00021917,7]
[335575173,1724337106268,-500.0,0.00021917,2]
[335575174,1724337106279,-513.69380551,0.00021917,7]
[335575175,1724337106288,-2064.66,0.00021917,7]
[335575176,1724337106298,-500.0,0.00021917,7]
[335575177,1724337106309,-500.0,0.00021917,7]
[335575178,1724337106319,-500.0,0.00021917,7]
[335575179,1724337106328,-500.0,0.00021917,7]
[335575180,1724337106338,-3117.7,0.00021917,7]
[335575181,1724337106348,-943.97,0.00021917,7]
[335575182,1724337106358,-500.0,0.00021917,7]
[335575183,1724337106368,-2763.47,0.00021917,7]
[335575184,1724337106378,-500.0,0.00021917,7]
[335575185,1724337106389,-1203.41,0.00021917,7]
[335575186,1724337106399,-742.76,0.00021917,7]
[335575187,1724337106412,-500.0,0.00021917,7]
[335575188,1724337106422,-500.0,0.00021917,7]
[335575189,1724337106432,-853.15,0.00021917,7]
[335575190,1724337106442,-8201.63,0.00021917,7]
[335575191,1724337106452,-500.0,0.00021917,7]
[335575192,1724337106461,-548.49,0.00021917,7]
[335575193,1724337106471,-662.18,0.00021917,7]
[335575194,1724337106481,-500.0,0.00021917,7]
[335575195,1724337106490,-500.0,0.00021917,7]
[335575196,1724337106500,-503.92,0.00021917,7]
[335575197,1724337106510,-1222.39,0.00021917,7]
[335575198,1724337106519,-2232.84,0.00021917,7]
[335575199,1724337106529,-1020.24,0.00021917,7]
[335575200,1724337106539,-500.0,0.00021917,7]
[335575201,1724337106549,-500.0,0.00021917,7]
[335575202,1724337106559,-889.15,0.00021917,7]
[335575203,1724337106569,-500.0,0.00021917,7]
[335575204,1724337106579,-1378.56,0.00021917,7]
[335575205,1724337106712,-1300.47,0.00021917,7]
[335575206,1724337106724,-500.0,0.00021917,7]
[335575207,1724337106735,-500.0,0.00021917,7]
[335575208,1724337106745,-500.0,0.00021917,7]
[335575209,1724337106754,-500.75138636,0.00021917,7]
[335575210,1724337106763,-500.0,0.00021917,7]
[335575211,1724337106773,-514.09710775,0.00021917,7]
[335575212,1724337106783,-590.97,0.00021917,7]
[335575213,1724337106792,-3423.46,0.00021917,7]
[335575214,1724337106802,-751.09,0.00021917,7]
[335575215,1724337106812,-574.33,0.00021917,7]
[335575216,1724337106823,-398.78101873,0.00021917,7]
[335575217,1724337106834,-500.0,0.00021917,7]
[335575218,1724337106844,-500.0,0.00021917,7]
[335575219,1724337106855,-6598.36,0.00021917,7]
[335575220,1724337106865,-500.0,0.00021917,7]
[335575221,1724337106874,-1292.32,0.00021917,7]
[335575222,1724337106887,-501.33,0.00021917,7]
[335575223,1724337106900,-500.0,0.00021917,2]
[335575224,1724337106912,-1155.5,0.00021917,7]
[335575225,1724337106925,-500.0,0.00021917,7]
[335575226,1724337106935,-500.0,0.00021917,7]
[335575227,1724337106945,-500.0,0.00021917,7]
[335575228,1724337106956,-2752.94,0.00021917,7]
[335575229,1724337106967,-809.66,0.00021917,7]
[335575230,1724337106977,-501.44,0.00021917,7]
[335575231,1724337106988,-509.69,0.00021917,7]
[335575232,1724337106998,-5923.55,0.00021917,7]
[335575233,1724337107008,-2097.57,0.00021917,7]
[335575234,1724337107018,-500.0,0.00021917,7]
[335575235,1724337107029,-852.22,0.00021917,7]
[335575236,1724337107039,-500.0,0.00021917,7]
[335575237,1724337107049,-500.0,0.00021917,7]
[335575238,1724337107059,-500.0,0.00021917,7]
[335575239,1724337107070,-3408.71,0.00021917,7]
[335575240,1724337107080,-544.68,0.00021917,7]
[335575241,1724337107090,-500.0,0.00021917,7]
[335575242,1724337107100,-500.0,0.00021917,7]
[335575243,1724337107110,-582.07,0.00021917,7]
[335575244,1724337107121,-500.0,0.00021917,7]
[335575245,1724337107131,-1232.75,0.00021917,7]
[335575246,1724337107143,-2053.08,0.00021917,7]
[335575247,1724337107153,-610.51,0.00021917,7]
[335575248,1724337107163,-500.0,0.00021917,7]
[335575249,1724337107174,-500.0,0.00021917,7]
[335575250,1724337107186,-500.0,0.00021917,7]
[335575251,1724337107195,-500.0,0.00021917,7]
[335575252,1724337107205,-2144.06,0.00021917,7]
[335575253,1724337107215,-151.0,0.00021918,2]
[335575254,1724337107224,-151.0,0.00021918,2]
[335575255,1724337107234,-8888.5071252,0.00021918,2]
[335575256,1724337107245,-160.0,0.00021918,2]
[335575257,1724337107256,-550.0,0.00021964,2]
[335575258,1724337107267,-161.40261454,0.00022,2]
[335575259,1724337107278,-154.92706672,0.00022,2]
[335575260,1724337107288,-302.57643837,0.00022,2]
[335575261,1724337107298,-882.99597685,0.0002217,2]
[335575262,1724337107308,-477.31288094,0.00022217,2]
[335575263,1724337107318,-302.57643837,0.0002222,2]
[335575264,1724337107327,-261.09129992,0.00022339,2]
[335575265,1724337107337,-300.0,0.000224,10]
[335575266,1724337107347,-302.57643837,0.0002244,2]
[335575267,1724337107356,-160.0,0.00022464,2]
[335575268,1724337107366,-500.0,0.00022465,7]
[335575269,1724337107376,-500.0,0.00022465,7]
[335575270,1724337107386,-500.0,0.00022465,7]
[335575271,1724337107396,-613.79,0.00022465,7]
[335575272,1724337107405,-657.18,0.00022465,7]
[335575273,1724337107415,-505.37505931,0.00022465,7]
[335575274,1724337107425,-500.0,0.00022465,7]
[335575275,1724337107434,-500.0,0.00022465,7]
[335575276,1724337107444,-500.0,0.00022465,7]
[335575277,1724337107454,-500.0,0.00022465,7]
[335575278,1724337107464,-629.91,0.00022465,7]
[335575279,1724337107474,-500.0,0.00022465,7]
[335575280,1724337107483,-557.08762194,0.00022465,7]
[335575281,1724337107493,-500.0,0.00022465,7]
[335575282,1724337107502,-500.0,0.00022465,7]
[335575283,1724337107512,-380.66127415,0.00022465,7]
[335575284,1724337107521,-500.0,0.00022465,7]
[335575285,1724337107541,-500.0,0.00022465,7]
[335575286,1724337107550,-659.09,0.00022465,7]
[335575287,1724337107559,-500.0,0.00022465,7]
[335575288,1724337107569,-1390.91,0.00022465,7]
[335575289,1724337107578,-558.51,0.00022465,7]
[335575290,1724337107588,-500.0,0.00022465,7]
[335575291,1724337107597,-500.0,0.00022465,7]
[335575292,1724337107607,-500.0,0.00022465,7]
[335575293,1724337107617,-500.0,0.00022465,7]
[335575294,1724337107627,-648.87,0.00022465,7]
[335575295,1724337107636,-710.07,0.00022465,7]
[335575296,1724337107646,-500.0,0.00022465,7]
[335575297,1724337107655,-500.0,0.00022465,7]
[335575298,1724337107665,-500.0,0.00022465,7]
[335575299,1724337107675,-500.0,0.00022465,7]
[335575300,1724337107684,-500.0,0.00022465,7]
[335575301,1724337107694,-500.0,0.00022465,7]
[335575302,1724337107703,-542.73,0.00022465,7]
[335575303,1724337107713,-957.73,0.00022465,7]
[335575304,1724337107723,-500.0,0.00022465,7]
[335575305,1724337107733,-500.0,0.00022465,7]
[335575306,1724337107742,-500.0,0.00022465,7]
[335575307,1724337107751,-500.0,0.00022465,7]
[335575308,1724337107761,-500.0,0.00022465,7]
[335575309,1724337107773,-500.0,0.00022465,7]
[335575310,1724337107783,-500.0,0.00022465,7]
[335575311,1724337107800,-200.0,0.00022465,7]
[335575312,1724337107822,-500.0,0.00022465,7]
[335575313,1724337107840,-523.67,0.00022465,7]
[335575314,1724337107862,-500.0,0.00022465,7]
[335575315,1724337107884,-500.0,0.00022465,7]
[335575316,1724337107902,-784.33,0.00022465,7]
[335575317,1724337107922,-500.0,0.00022465,7]
[335575318,1724337107937,-500.0,0.00022465,7]
[335575319,1724337107955,-544.33,0.00022465,7]
[335575320,1724337107975,-500.0,0.00022465,7]
[335575321,1724337107990,-522.52,0.00022465,7]
[335575322,1724337108007,-500.0,0.00022465,7]
[335575323,1724337108024,-500.0,0.00022465,7]
[335575324,1724337108043,-629.62,0.00022465,7]
[335575325,1724337108058,-500.0,0.00022465,7]
[335575326,1724337108073,-913.02,0.00022465,7]
[335575327,1724337108089,-500.0,0.00022465,7]
[335575328,1724337108105,-500.0,0.00022465,7]
[335575329,1724337108122,-500.0,0.00022465,7]
[335575330,1724337108139,-314.82037655,0.00022465,7]
[335575331,1724337108155,-500.0,0.00022465,7]
[335575332,1724337108171,-508.66968303,0.00022465,7]
[335575333,1724337108190,-549.7,0.00022465,7]
[335575334,1724337108206,-500.0,0.00022465,7]
[335575335,1724337108222,-500.0,0.00022465,7]
[335575336,1724337108237,-500.0,0.00022465,7]
[335575337,1724337108253,-500.0,0.00022465,7]
[335575338,1724337108270,-500.0,0.00022465,7]
[335575339,1724337108287,-634.18,0.00022465,7]
[335575340,1724337108301,-500.0,0.00022465,7]
[335575341,1724337108316,-500.0,0.00022465,7]
[335575342,1724337108333,-197.69873113,0.00022465,7]
[335575343,1724337108348,-1212.62,0.00022465,7]
[335575344,1724337108365,-623.18937979,0.00022465,7]
[335575345,1724337108379,-500.0,0.00022465,7]
[335575346,1724337108394,-500.0,0.00022465,7]
[335575347,1724337108409,-500.0,0.00022465,7]
[335575348,1724337108425,-500.0,0.00022465,7]
[335575349,1724337108441,-500.0,0.00022465,7]
[335575350,1724337108457,-500.0,0.00022465,7]
[335575351,1724337108473,-500.0,0.00022465,7]
[335575352,1724337108489,-500.0,0.00022465,7]
[335575353,1724337108504,-500.0,0.00022465,7]
[335575354,1724337108521,-500.0,0.00022465,7]
[335575355,1724337108536,-500.0,0.00022465,7]
[335575356,1724337108551,-500.0,0.00022465,7]
[335575357,1724337108565,-759.12,0.00022465,7]
[335575358,1724337108581,-500.0,0.00022465,7]
[335575359,1724337108595,-1005.08,0.00022465,7]
[335575360,1724337108609,-500.0,0.00022465,7]
[335575361,1724337108624,-500.0,0.00022465,7]
[335575362,1724337108639,-660.45,0.00022465,7]
[335575363,1724337108656,-500.0,0.00022465,7]
[335575364,1724337108669,-500.0,0.00022465,7]
[335575365,1724337108685,-603.86,0.00022465,7]
[335575366,1724337108700,-757.65,0.00022465,7]
[335575367,1724337108715,-795.14,0.00022465,7]
[335575368,1724337108729,-500.0,0.00022465,7]
[335575369,1724337108745,-500.0,0.00022465,7]
[335575370,1724337108760,-762.91,0.00022465,7]
[335575371,1724337108776,-500.0,0.00022465,7]
[335575372,1724337108789,-500.0,0.00022465,7]